bitfinex-derivatives/quotes_SOLF0:USTF0_20250415
["timestamp","ask_amount","ask_price","bid_price","bid_amount"]
[1744742862203,8.45830064,128.24,128.23,38.11040615]
[1744742862405,8.45830064,128.25,128.23,38.11040615]
[1744742863102,7.798,128.25,128.23,38.11040615]
[1744742864704,19.51830553,128.33,128.24,13.23160553]
[1744742864909,19.51830553,128.33,128.24,15.39960553]
[1744742865111,7.7951,128.3,128.24,15.39960553]
[1744742865610,7.7951,128.3,128.27,7.7961]
[1744742865810,7.85270995,128.3,128.27,38.13151988]
[1744742866413,7.85270995,128.3,128.28,7.7959]
[1744742866600,7.85270995,128.3,128.27,30.33541988]
[1744742866800,13.23160553,128.29,128.27,0.05541988]
[1744742867102,13.23160553,128.29,128.22,30.28]
[1744742867299,7.7982,128.25,128.22,30.28]
[1744742867511,13.23160553,128.26,128.22,30.28]
[1744742867808,7.7989,128.24,128.22,30.28]
[1744742868009,7.8559373,128.24,128.22,38.13637781]
[1744742868311,7.8559373,128.24,128.22,30.33697781]
[1744742868507,7.7991,128.23,128.22,30.33697781]
[1744742869510,7.8557373,128.24,128.22,30.33697781]
[1744742870108,7.7991,128.23,128.22,30.33697781]
[1744742870306,0.0570373,128.24,128.22,0.05697781]
[1744742870505,13.28864283,128.24,128.22,0.05697781]
[1744742870906,7.7991,128.23,128.22,0.05697781]
[1744742875608,0.0570373,128.24,128.22,0.05697781]
[1744742876108,0.0570373,128.24,128.22,7.85617781]
[1744742878013,7.8555373,128.24,128.22,7.85617781]
[1744742878310,13.28864283,128.24,128.22,0.05697781]
[1744742878501,13.28864283,128.24,128.17,30.28]
[1744742878502,13.23160553,128.23,128.17,30.28]
[1744742878703,21.03340553,128.19,128.17,30.28]
[1744742879207,7.8021,128.18,128.17,30.28]
[1744742880010,0.04968953,128.19,128.17,30.28]
[1744742880407,43.51160553,128.25,128.17,43.51160553]
[1744742880613,7.7995,128.23,128.2,7.8008]
[1744742880910,13.23160553,128.25,128.2,38.0808]
[1744742881115,7.8,128.22,128.2,38.0808]
[1744742881316,7.8,128.22,128.2,30.28]
[1744742881618,0.05165391,128.22,128.2,30.33988146]
[1744742882010,7.8003,128.21,128.2,30.33988146]
[1744742885010,0.05165391,128.22,128.2,30.33988146]
[1744742885214,0.05165391,128.22,128.2,38.14028146]
[1744742885916,0.05165391,128.22,128.21,7.8003]
[1744742886315,0.05165391,128.22,128.2,38.14048146]
[1744742886618,0.05165391,128.22,128.2,30.33988146]
[1744742888616,0.05165391,128.22,128.2,38.14018146]
[1744742889517,0.05165391,128.22,128.21,7.8003]
[1744742893223,15.28380553,128.27,128.2,30.33988146]
[1744742893425,19.37750553,128.27,128.2,30.33988146]
[1744742893617,7.7996,128.23,128.2,30.33988146]
[1744742894121,0.05393763,128.23,128.2,30.33988146]
[1744742894316,13.28554316,128.23,128.2,30.33988146]
[1744742894514,13.23160553,128.21,128.16,30.26]
[1744742894718,7.8024,128.18,128.16,30.26]
[1744742895524,7.85924854,128.18,128.16,30.31368868]
[1744742896526,7.85924854,128.18,128.16,38.11698868]
[1744742896825,0.05684854,128.18,128.16,30.31368868]
[1744742897226,7.85894854,128.18,128.16,30.31368868]
[1744742897527,0.05684854,128.18,128.16,30.31368868]
[1744742898021,7.85924854,128.18,128.16,30.31368868]
[1744742898226,0.05684854,128.18,128.16,30.31368868]
[1744742898729,7.8027,128.17,128.16,30.31368868]
[1744742899124,7.8027,128.17,128.16,0.05368868]
[1744742901929,21.03430553,128.17,128.16,0.05368868]
[1744742902126,7.8027,128.17,128.16,0.05368868]
[1744742902528,7.85924854,128.18,128.16,0.05368868]
[1744742903028,0.05684854,128.18,128.16,0.05368868]
[1744742903224,32.3024,128.22,128.16,30.33368868]
[1744742903421,13.23160553,128.23,128.16,30.33368868]
[1744742903619,17.44140553,128.25,128.16,30.28]
[1744742903823,47.72140553,128.25,128.17,13.23160553]
[1744742904031,15.27430553,128.27,128.17,19.46500553]
[1744742904330,0.05133525,128.23,128.21,0.05922021]
[1744742904530,0.05133525,128.23,128.21,30.33922021]
[1744742904734,0.05133525,128.23,128.21,38.13922021]
[1744742905029,0.05133525,128.23,128.21,30.33922021]
[1744742905228,7.7997,128.22,128.21,30.33922021]
[1744742907431,0.05133525,128.23,128.21,30.33922021]
[1744742907932,7.7997,128.22,128.21,30.33922021]
[1744742909032,7.85063525,128.23,128.21,30.33922021]
[1744742909234,0.05133525,128.23,128.21,30.33922021]
[1744742909530,7.7997,128.22,128.21,30.33922021]
[1744742910829,0.05133525,128.23,128.18,30.28]
[1744742910830,7.8015,128.19,128.18,30.28]
[1744742912635,7.8021,128.18,128.17,0.04988344]
[1744742913738,7.8021,128.18,128.17,8.344e-05]
[1744742913935,17.31760553,128.19,128.13,30.26]
[1744742914136,13.23160553,128.17,128.13,30.26]
[1744742914629,7.8044,128.15,128.13,30.26]
[1744742914834,7.86370887,128.15,128.13,30.31819851]
[1744742915537,13.23160553,128.21,128.13,43.54980404]
[1744742915734,13.23160553,128.21,128.14,2.1007]
[1744742915936,4.0351,128.26,128.15,13.23160553]
[1744742915937,13.23160553,128.23,128.15,13.23160553]
[1744742916126,13.23160553,128.25,128.17,13.23160553]
[1744742916536,0.05101238,128.22,128.2,0.05370273]
[1744742917136,7.8003,128.21,128.2,0.05370273]
[1744742917638,7.85101238,128.22,128.2,0.05370273]
[1744742918034,7.85101238,128.22,128.2,7.85430273]
[1744742922039,0.05101238,128.22,128.21,7.8003]
[1744742922539,0.05101238,128.22,128.2,7.85440273]
[1744742923139,0.05101238,128.22,128.2,0.05370273]
[1744742923632,7.8003,128.21,128.2,0.05370273]
[1744742923836,0.05101238,128.22,128.2,0.05370273]
[1744742924036,0.05101238,128.22,128.2,7.85450273]
[1744742924642,7.85101238,128.22,128.2,7.85450273]
[1744742925642,7.85101238,128.22,128.2,0.05370273]
[1744742926345,7.85101238,128.22,128.2,7.85460273]
[1744742927039,7.8003,128.21,128.2,0.05370273]
[1744742929442,7.85101238,128.22,128.2,0.05370273]
[1744742930042,7.85101238,128.22,128.2,7.85460273]
[1744742930544,0.05101238,128.22,128.21,7.8003]
[1744742932145,2.1157,128.28,128.2,0.05370273]
[1744742932346,2.1157,128.28,128.19,30.26]
[1744742933041,2.1157,128.28,128.22,0.05381559]
[1744742933246,7.7988,128.24,128.22,7.85321559]
[1744742934547,0.05469666,128.25,128.22,0.05381559]
[1744742934947,7.7991,128.23,128.22,0.05381559]
[1744742938947,45.64653641,128.24,128.16,30.24]
[1744742939153,13.23413641,128.21,128.16,30.24]
[1744742939755,7.8027,128.17,128.16,30.24]
[1744742941057,7.8033,128.16,128.15,0.05085513]
[1744742943149,7.8069,128.11,128.1,30.22]
[1744742944059,7.806,128.12,128.1,30.22]
[1744742944258,7.85899452,128.12,128.1,30.27856195]
[1744742944560,7.85899452,128.12,128.1,38.08546195]
[1744742945859,7.85899452,128.12,128.1,30.27856195]
[1744742946460,7.8064,128.11,128.1,30.27856195]
[1744742949758,7.85909452,128.12,128.1,30.27856195]
[1744742950064,0.05299452,128.12,128.1,30.27856195]
[1744742950566,0.05299452,128.12,128.1,38.08506195]
[1744742950765,0.05299452,128.12,128.1,30.27856195]
[1744742950962,0.05299452,128.12,128.11,7.8064]
[1744742965373,7.85919452,128.12,128.1,30.27856195]
[1744742965574,0.05299452,128.12,128.1,30.27856195]
[1744742965873,0.05299452,128.12,128.1,38.08506195]
[1744742966874,7.85879452,128.12,128.1,38.08506195]
[1744742967873,7.8064,128.11,128.1,30.27856195]
[1744742968376,7.8082,128.08,128.07,30.24]
[1744742968570,13.23413641,128.11,128.04,30.24]
[1744742968770,15.21333641,128.11,128.04,30.24]
[1744742969377,7.8085,128.08,128.05,7.8098]
[1744742969674,7.8085,128.08,128.06,0.05532712]
[1744742970475,7.8088,128.07,128.06,0.05532712]
[1744742970876,0.05920317,128.09,128.06,0.05532712]
[1744742971179,7.8087,128.08,128.06,0.05532712]
[1744742971679,7.8088,128.07,128.06,0.05532712]
[1744742975481,7.81,128.05,128.04,30.24]
[1744742977182,7.8106,128.04,128.03,0.05286479]
[1744742978280,43.45413641,128.05,127.95,30.22]
[1744742978586,43.45413641,128.05,127.97,13.23413641]
[1744742979189,0.05631771,128.02,128.0,0.05679903]
[1744742979780,30.24,128.1,128.01,43.47413641]
[1744742979985,30.24,128.1,128.04,13.23413641]
[1744742980278,7.8089,128.07,128.04,51.28443641]
[1744742980787,7.85981247,128.07,128.04,51.34213808]
[1744742981785,0.05091247,128.07,128.05,7.81]
[1744742982688,7.85981247,128.07,128.04,51.34203808]
[1744742983187,7.85981247,128.07,128.04,43.53183808]
[1744742983390,7.85981247,128.07,128.05,7.81]
[1744742983693,0.05091247,128.07,128.06,13.23413641]
[1744742983990,0.05091247,128.07,128.05,7.8098]
[1744742987990,7.86001247,128.07,128.04,51.34213808]
[1744742988290,7.86001247,128.07,128.04,38.10800167]
[1744742989390,0.05091247,128.07,128.05,7.81]
[1744742989890,7.85971247,128.07,128.05,7.81]
[1744742990090,7.85971247,128.07,128.04,38.10820167]
[1744742990491,0.05091247,128.07,128.04,30.29770167]
[1744742990785,0.05091247,128.07,128.05,7.8097]
[1744742990991,0.05091247,128.07,128.06,13.23413641]
[1744742991186,7.8073,128.1,128.07,7.8084]
[1744742991481,7.8073,128.1,128.07,38.0284]
[1744742991692,15.94742,128.11,128.07,30.22]
[1744742991885,15.94742,128.11,128.08,13.23413641]
[1744742992082,16.00023618,128.11,128.08,13.28437537]
[1744742992592,16.00023618,128.11,128.09,7.8075]
[1744742995188,8.19353618,128.11,128.08,0.05023896]
[1744742995896,16.00033618,128.11,128.08,0.05023896]
[1744742996397,7.8072,128.1,128.08,7.85813896]
[1744742997499,7.8072,128.1,128.08,0.05023896]
[1744742998892,7.8072,128.1,128.08,7.85813896]
[1744742999493,16.00023618,128.11,128.08,7.85813896]
[1744743000305,8.19353618,128.11,128.08,13.28437537]
[1744743000502,8.19353618,128.11,128.09,2.124]
[1744743000804,8.19353618,128.11,128.08,0.05023896]
[1744743001301,7.8076,128.09,128.08,0.05023896]
[1744743001496,16.29732953,128.09,128.08,0.05023896]
[1744743001997,7.8073,128.1,128.08,0.05023896]
[1744743002295,7.8076,128.09,128.08,0.05023896]
[1744743006699,13.26252512,128.08,128.04,30.22]
[1744743007301,13.26252512,128.08,128.04,38.0305]
[1744743007508,7.85971577,128.07,128.05,0.05493179]
[1744743007702,0.05041577,128.07,128.05,7.86453179]
[1744743008001,7.85971577,128.07,128.05,0.05493179]
[1744743008393,0.05041577,128.07,128.05,0.05493179]
[1744743008597,7.8094,128.06,128.05,0.05493179]
[1744743008797,0.05041577,128.07,128.05,0.05493179]
[1744743009202,7.8094,128.06,128.05,0.05493179]
[1744743010302,7.811,128.04,128.01,30.2]
[1744743010506,13.26252512,128.06,128.01,30.2]
[1744743010706,13.26252512,128.06,128.01,38.0122]
[1744743010905,7.8114,128.03,128.01,38.0122]
[1744743011308,0.04991955,128.03,128.01,30.25340915]
[1744743012006,7.86151955,128.03,128.01,30.25340915]
[1744743012207,0.04991955,128.03,128.01,38.06570915]
[1744743012707,7.86131955,128.03,128.01,30.25340915]
[1744743013204,7.8119,128.02,128.01,30.25340915]
[1744743016406,7.8119,128.02,128.01,0.05340915]
[1744743019512,0.04991955,128.03,128.01,0.05340915]
[1744743019712,0.04991955,128.03,128.01,30.27340915]
[1744743020413,8.14072,128.11,128.02,14.69685725]
[1744743020615,8.14072,128.11,128.06,13.26252512]
[1744743020804,15.94732,128.11,128.08,7.8078]
[1744743021211,8.19604584,128.11,128.08,7.86509301]
[1744743021412,16.00244584,128.11,128.08,7.86509301]
[1744743021812,8.19604584,128.11,128.09,7.8075]
[1744743022316,8.19604584,128.11,128.1,7.807]
[1744743022520,8.19604584,128.11,128.1,38.027]
[1744743024119,30.22,128.17,128.1,43.48252512]
[1744743024310,17.34782512,128.19,128.1,43.48252512]
[1744743024511,7.8046,128.14,128.1,43.48252512]
[1744743024710,13.26252512,128.17,128.12,7.8055]
[1744743024911,19.41172512,128.19,128.1,43.48252512]
[1744743025106,0.05689729,128.16,128.13,0.05356409]
[1744743026014,7.86049729,128.16,128.13,7.85826409]
[1744743026410,0.05689729,128.16,128.14,30.2]
[1744743026617,0.05689729,128.16,128.14,43.46252512]
[1744743027014,0.05689729,128.16,128.15,7.8039]
[1744743031519,0.05689729,128.16,128.14,30.2]
[1744743032417,0.05689729,128.16,128.14,38.0045]
[1744743032618,7.86019729,128.16,128.14,30.2]
[1744743032921,0.05689729,128.16,128.14,30.2]
[1744743033724,7.86019729,128.16,128.14,30.2]
[1744743034226,0.05689729,128.16,128.14,30.2]
[1744743034921,7.86029729,128.16,128.14,30.2]
[1744743035225,0.05689729,128.16,128.14,30.2]
[1744743036327,0.05689729,128.16,128.14,38.0045]
[1744743036729,0.05689729,128.16,128.14,30.2]
[1744743037027,0.05689729,128.16,128.15,7.8039]
[1744743044137,0.05689729,128.16,128.15,16.27994605]
[1744743044337,8.47604605,128.21,128.17,7.8023]
[1744743044635,8.47604605,128.21,128.17,37.9623]
[1744743045136,7.8013,128.2,128.17,37.9623]
[1744743045638,0.05276168,128.2,128.17,38.01322291]
[1744743046135,8.52880773,128.2,128.17,38.01322291]
[1744743046337,7.8016,128.19,128.17,38.01322291]
[1744743046937,16.33000773,128.2,128.17,38.01322291]
[1744743048038,16.33000773,128.2,128.18,7.8021]
[1744743048440,7.85396168,128.2,128.17,30.21092291]
[1744743048638,7.85396168,128.2,128.18,7.802]
[1744743049436,7.85396168,128.2,128.17,38.01332291]
[1744743050236,7.8016,128.19,128.17,38.01332291]
[1744743052441,7.8016,128.19,128.17,30.21092291]
[1744743052642,16.33000773,128.2,128.17,30.21092291]
[1744743053143,16.33000773,128.2,128.17,38.01332291]
[1744743053544,16.33000773,128.2,128.18,7.8021]
[1744743053943,16.33000773,128.2,128.17,30.21092291]
[1744743054539,7.85396168,128.2,128.17,38.68696896]
[1744743055043,0.05276168,128.2,128.17,38.68696896]
[1744743055441,0.05276168,128.2,128.18,7.8015]
[1744743055648,7.85366168,128.2,128.18,7.8015]
[1744743056449,7.8015,128.19,128.17,38.01342291]
[1744743057349,7.8021,128.18,128.17,30.21092291]
[1744743058954,7.8039,128.15,128.14,30.16]
[1744743059154,16.27994605,128.15,128.14,30.16]
[1744743060049,7.8039,128.15,128.14,30.16]
[1744743060250,16.27994605,128.15,128.14,30.16]
[1744743061561,7.8039,128.15,128.14,30.16]
[1744743062051,7.85470634,128.16,128.14,30.16]
[1744743062257,8.47604605,128.21,128.15,8.47604605]
[1744743062457,10.65244605,128.22,128.17,8.47604605]
[1744743062659,7.8011,128.2,128.17,38.63604605]
[1744743062860,7.8011,128.2,128.17,46.43814605]
[1744743063256,7.8011,128.2,128.17,46.48745643]
[1744743063464,7.85112075,128.2,128.17,46.48745643]
[1744743065460,7.8015,128.19,128.17,46.48745643]
[1744743066360,0.05002075,128.2,128.18,8.47604605]
[1744743066863,0.05002075,128.2,128.19,7.8015]
[1744743068264,0.05002075,128.2,128.18,16.27784605]
[1744743068465,7.85092075,128.2,128.17,38.68535643]
[1744743068966,7.8019,128.19,128.17,30.20931038]
[1744743069166,0.05002075,128.2,128.17,30.20931038]
[1744743069664,0.05002075,128.2,128.17,38.68535643]
[1744743070066,7.8018,128.19,128.17,38.01171038]
[1744743070466,0.05002075,128.2,128.17,30.20931038]
[1744743070674,0.05002075,128.2,128.17,38.01171038]
[1744743071873,0.05002075,128.2,128.18,8.47604605]
[1744743072667,365.0,128.33,128.18,8.47604605]
[1744743072972,8.47604605,128.28,128.22,8.47604605]
[1744743073167,7.7976,128.26,128.23,37.9187]
[1744743073368,8.47604605,128.28,128.23,30.12]
[1744743073771,0.05646691,128.27,128.24,7.85344203]
[1744743073970,8.47604605,128.26,128.24,0.05504203]
[1744743074173,8.47604605,128.25,128.16,8.47604605]
[1744743074472,8.47604605,128.18,128.16,30.12]
[1744743075170,0.05767074,128.18,128.17,7.8024]
[1744743076563,0.05767074,128.18,128.16,37.98174079]
[1744743076769,8.47604605,128.17,128.16,30.17874079]
[1744743076965,8.47604605,128.17,128.16,0.05874079]
[1744743077167,13.25760414,128.17,128.12,30.12]
[1744743077371,13.25760414,128.14,128.12,30.12]
[1744743077576,13.25760414,128.14,128.09,30.12]
[1744743077875,21.06260414,128.14,128.09,30.12]
[1744743078075,0.05998722,128.13,128.1,0.05394785]
[1744743078277,0.05998722,128.13,128.11,7.806]
[1744743078480,7.86548722,128.13,128.1,0.05394785]
[1744743078884,0.05998722,128.13,128.1,0.05394785]
[1744743079685,30.12,128.19,128.11,13.25760414]
[1744743079686,13.25760414,128.19,128.11,13.25760414]
[1744743079887,13.25760414,128.19,128.12,30.12]
[1744743080079,13.25760414,128.19,128.15,7.8035]
[1744743080281,13.25760414,128.19,128.15,37.9235]
[1744743080685,13.25760414,128.19,128.15,30.12]
[1744743080888,0.05444203,128.18,128.16,0.05394058]
[1744743081091,0.05444203,128.18,128.17,7.8027]
[1744743083088,0.05444203,128.18,128.16,0.05394058]
[1744743083489,21.06030414,128.17,128.16,0.05394058]
[1744743083687,13.25760414,128.17,128.12,30.12]
[1744743083890,13.25760414,128.15,128.12,30.12]
[1744743084388,7.8049,128.14,128.12,30.12]
[1744743084588,7.85810742,128.14,128.12,30.17871065]
[1744743084889,7.8051,128.13,128.12,30.17871065]
[1744743085197,7.8051,128.13,128.12,0.05871065]
[1744743086390,7.85790742,128.14,128.12,0.05871065]
[1744743086891,7.8051,128.13,128.12,0.05871065]
[1744743087692,7.85800742,128.14,128.12,0.05871065]
[1744743087992,0.05320742,128.14,128.12,0.05871065]
[1744743088194,7.8051,128.13,128.12,0.05871065]
[1744743090998,7.85800742,128.14,128.12,0.05871065]
[1744743091592,0.05320742,128.14,128.12,0.05871065]
[1744743091799,7.8051,128.13,128.12,0.05871065]
[1744743094602,7.85800742,128.14,128.12,7.86451065]
[1744743094899,0.05320742,128.14,128.12,30.19871065]
[1744743095802,0.05320742,128.14,128.13,7.8051]
[1744743097602,7.85780742,128.14,128.12,38.00411065]
[1744743097895,0.05320742,128.14,128.12,30.19871065]
[1744743098505,0.05320742,128.14,128.13,7.8051]
[1744743105106,0.05320742,128.14,128.12,38.00411065]
[1744743105601,7.8051,128.13,128.12,30.19871065]
[1744743105903,7.8051,128.13,128.12,0.05871065]
[1744743105904,21.06270414,128.13,128.12,0.05871065]
[1744743106607,7.8051,128.13,128.12,0.05871065]
[1744743106801,7.807,128.1,128.09,30.1]
[1744743107504,7.8067,128.11,128.09,30.1]
[1744743107807,0.05517638,128.11,128.09,30.15486944]
[1744743108006,7.807,128.1,128.09,30.15486944]
[1744743108800,21.06460414,128.1,128.09,0.05486944]
[1744743109006,7.807,128.1,128.09,0.05486944]
[1744743113004,0.05517638,128.11,128.09,30.17486944]
[1744743113311,378.25760414,128.17,128.09,30.17486944]
[1744743113502,7.8051,128.14,128.11,7.8061]
[1744743113810,7.8051,128.14,128.11,37.9261]
[1744743114109,7.85781678,128.14,128.11,37.97968327]
[1744743116008,7.8052,128.13,128.11,37.97968327]
[1744743116907,0.05271678,128.14,128.13,7.8051]
[1744743117210,13.25760414,128.21,128.12,15.29560414]
[1744743117909,7.8024,128.18,128.15,7.8036]
[1744743118113,7.8024,128.18,128.17,0.05146178]
[1744743118410,0.0556764,128.19,128.17,0.05146178]
[1744743118709,0.0556764,128.19,128.17,7.85416178]
[1744743119106,0.0556764,128.19,128.18,7.8021]
[1744743119613,0.0556764,128.19,128.17,7.85386178]
[1744743120112,0.0556764,128.19,128.17,0.05146178]
[1744743120913,0.0556764,128.19,128.18,7.8021]
[1744743121409,0.0556764,128.19,128.17,0.05146178]
[1744743122318,7.8574764,128.19,128.17,0.05146178]
[1744743122516,0.0556764,128.19,128.17,0.05146178]
[1744743123318,7.8021,128.18,128.17,0.05146178]
[1744743123511,13.31328054,128.19,128.11,591.96]
[1744743123818,13.25760414,128.16,128.11,591.96]
[1744743124018,7.8042,128.15,128.11,591.96]
[1744743124520,7.86318348,128.14,128.12,7.85592318]
[1744743124922,7.86318348,128.14,128.12,0.05052318]
[1744743125118,7.8051,128.13,128.12,0.05052318]
[1744743131025,7.8076,128.09,128.07,37.9085]
[1744743131227,13.25760414,128.13,128.07,37.9085]
[1744743131624,7.8073,128.1,128.07,37.9085]
[1744743131921,7.8073,128.1,128.08,7.8081]
[1744743132229,7.85698012,128.1,128.08,7.86474792]
[1744743132824,0.04968012,128.1,128.08,7.86474792]
[1744743133725,7.85668012,128.1,128.08,7.86474792]
[1744743134027,0.04968012,128.1,128.08,7.86474792]
[1744743134921,45.6999,128.22,128.09,13.25760414]
[1744743135127,13.25760414,128.2,128.12,13.25760414]
[1744743135427,7.8026,128.18,128.13,30.1]
[1744743135627,7.8026,128.18,128.14,7.8039]
[1744743135827,65.33600414,128.22,128.13,30.1]
[1744743136129,0.04952401,128.17,128.15,0.05082193]
[1744743136427,0.05799262,128.17,128.15,0.05082193]
[1744743137328,7.86099262,128.17,128.15,7.85472193]
[1744743138224,7.8033,128.16,128.15,0.05082193]
[1744743142530,7.86119262,128.17,128.15,0.05082193]
[1744743143232,7.8033,128.16,128.15,0.05082193]
[1744743153752,21.06090414,128.16,128.15,0.05082193]
[1744743153941,21.06090414,128.16,128.15,2.193e-05]
[1744743154848,7.8033,128.16,128.15,2.193e-05]
[1744743155050,21.06090414,128.16,128.15,2.193e-05]
[1744743157355,7.8033,128.16,128.15,2.193e-05]
[1744743158553,21.06090414,128.16,128.15,2.193e-05]
[1744743160354,7.8064,128.11,128.1,30.08]
[1744743161357,7.86468882,128.12,128.1,30.08]
[1744743161654,0.05858882,128.12,128.09,561.81154354]
[1744743161855,0.05858882,128.12,128.09,591.89154354]
[1744743163059,7.86468882,128.12,128.09,599.69874354]
[1744743163558,0.05858882,128.12,128.09,599.69874354]
[1744743165161,7.8064,128.11,128.09,599.69874354]
[1744743165759,7.8064,128.11,128.09,37.93874354]
[1744743166853,7.807,128.1,128.09,30.13154354]
[1744743167357,7.807,128.1,128.09,0.05154354]
[1744743167559,7.8089,128.07,128.06,30.08]
[1744743173460,13.25760414,128.07,127.98,561.88]
[1744743173666,13.25760414,128.07,128.0,30.08]
[1744743173964,7.8125,128.01,128.0,30.08]
[1744743174763,7.86762395,128.02,128.0,30.08]
[1744743175155,7.86762395,128.02,128.0,37.8928]
[1744743175968,0.05552395,128.02,128.0,37.8927]
[1744743177069,7.86742395,128.02,128.0,37.8927]
[1744743177477,0.05552395,128.02,128.0,30.08]
[1744743177771,7.8125,128.01,128.0,30.08]
[1744743180374,7.86762395,128.02,128.0,30.08]
[1744743180573,0.05552395,128.02,128.0,30.08]
[1744743180872,7.8125,128.01,128.0,30.08]
[1744743183269,7.86772395,128.02,128.0,30.08]
[1744743183471,0.05552395,128.02,128.0,30.08]
[1744743185174,7.8125,128.01,128.0,30.08]
[1744743185874,0.05552395,128.02,128.0,30.08]
[1744743186579,13.25760414,128.09,128.0,43.33760414]
[1744743186776,13.25760414,128.09,128.01,4.1524]
[1744743186971,13.25760414,128.09,128.03,7.8109]
[1744743187169,13.25760414,128.09,128.03,37.9109]
[1744743187472,13.25760414,128.09,128.03,30.1]
[1744743187675,7.8104,128.05,128.03,30.1]
[1744743187976,7.8104,128.05,128.03,30.1535658]
[1744743188675,7.8106,128.04,128.03,30.1535658]
[1744743190075,7.8106,128.04,128.03,0.0535658]
[1744743190875,21.06820414,128.04,128.03,0.0535658]
[1744743193380,7.8125,128.01,128.0,30.12]
[1744743195783,7.86858727,128.02,128.0,30.12]
[1744743195985,0.05648727,128.02,128.0,30.12]
[1744743196583,7.86868727,128.02,128.0,30.12]
[1744743197482,0.05648727,128.02,128.0,30.12]
[1744743198084,7.86868727,128.02,128.0,37.9329]
[1744743199081,0.05648727,128.02,128.0,37.9329]
[1744743199281,0.05648727,128.02,128.01,7.8125]
[1744743199788,0.05648727,128.02,128.0,37.9328]
[1744743201387,0.05648727,128.02,128.01,7.8125]
[1744743202288,13.25760414,128.09,128.03,7.8112]
[1744743202489,13.25760414,128.09,128.03,30.14]
[1744743202689,7.8097,128.06,128.03,30.14]
[1744743202987,13.25760414,128.1,128.03,43.39760414]
[1744743203189,7.8644708,128.08,128.05,0.05181658]
[1744743203377,7.8644708,128.08,128.06,30.14]
[1744743203988,0.0559708,128.08,128.06,30.14]
[1744743205192,0.0559708,128.08,128.07,7.8088]
[1744743207389,13.25760414,128.14,128.09,7.8072]
[1744743207593,4.0477,128.15,128.1,30.12]
[1744743207794,13.25760414,128.16,128.1,30.12]
[1744743207987,13.25760414,128.16,128.11,7.8063]
[1744743208495,7.8051,128.13,128.12,0.05664047]
[1744743209993,7.8049,128.14,128.12,0.05664047]
[1744743210195,0.04965301,128.15,128.13,30.12]
[1744743210597,7.85395301,128.15,128.13,30.12]
[1744743210798,0.04965301,128.15,128.13,30.12]
[1744743211699,7.85385301,128.15,128.13,30.12]
[1744743212098,7.85385301,128.15,128.13,37.925]
[1744743212298,0.04965301,128.15,128.13,30.12]
[1744743212702,0.04965301,128.15,128.14,7.8045]
[1744743213598,7.8024,128.18,128.16,7.8033]
[1744743213794,7.8024,128.18,128.16,30.12]
[1744743214202,7.8027,128.17,128.16,30.12]
[1744743216797,7.8033,128.16,128.15,0.05046778]
[1744743217002,26.51520828,128.16,128.08,30.1]
[1744743217200,13.25760414,128.12,128.08,30.1]
[1744743217396,7.8076,128.09,128.08,30.1]
[1744743221908,7.86700518,128.1,128.08,30.1]
[1744743223913,0.05990518,128.1,128.08,37.9081]
[1744743224211,0.05990518,128.1,128.08,30.1]
[1744743224406,7.86710518,128.1,128.08,30.1]
[1744743225012,0.05990518,128.1,128.08,37.9079]
[1744743225203,0.05990518,128.1,128.08,30.1]
[1744743225908,0.05990518,128.1,128.08,30.08]
[1744743226509,0.05990518,128.1,128.09,7.8076]
[1744743230108,0.05990518,128.1,128.08,37.8879]
[1744743230314,0.05990518,128.1,128.07,0.04955856]
[1744743230806,7.8081,128.09,128.07,0.04955856]
[1744743231915,7.8082,128.08,128.07,0.04955856]
[1744743233611,7.8079,128.09,128.07,0.04955856]
[1744743235219,7.8082,128.08,128.07,0.04955856]
[1744743237619,7.8079,128.09,128.07,0.04955856]
[1744743238321,7.8082,128.08,128.07,0.04955856]
[1744743239616,0.05990518,128.1,128.07,0.04955856]
[1744743240015,7.8076,128.09,128.07,0.04955856]
[1744743240215,0.05990518,128.1,128.07,0.04955856]
[1744743240721,7.86750518,128.1,128.07,0.04955856]
[1744743241221,0.05990518,128.1,128.07,7.85805856]
[1744743241426,7.8077,128.09,128.07,7.85805856]
[1744743241817,7.8077,128.09,128.07,0.04955856]
[1744743243626,7.8082,128.08,128.07,0.04955856]
[1744743249232,16.29958242,128.08,128.07,0.04955856]
[1744743249726,7.8082,128.08,128.07,0.04955856]
[1744743251035,16.29958242,128.08,128.07,0.04955856]